[Event "ESTCC U50 2018"]
[Site "Walbrzych"]
[Date "2018.04.14"]
[Round "1"]
[White "Wagner-Michel, Annett"]
[Black "Germann, Martin"]
[Result "1/2-1/2"]
[ECO "C01"]
[WhiteElo "2104"]
[BlackElo "1755"]
[Annotator "NA"]
[PlyCount "92"]
[EventDate "2018.??.??"]
[EventCountry "POL"]
[SourceTitle "playchess.com"]
[Source "ChessBase"]
[SourceQuality "1"]
[WhiteTeam "Germany"]
[BlackTeam "Switzerland"]
[WhiteTeamCountry "GER"]
[BlackTeamCountry "SUI"]
[TimeControl "40/5400+30:1800+30"]

1. e4 e6 2. d4 d5 3. exd5 exd5 4. Bd3 Bd6 5. Ne2 Bg4 6. Nbc3 {C01: French: Exchange Variation} (6. c3 Nf6 7. Bg5 Nbd7 8. O-O O-O 9. Nd2 Re8 10. Re1 c5 11. dxc5 Bxc5 12. Bh4 Qb6 13. Nb3 Bd6 {½-½ (21) Dvorak,T (2331)-Laznicka,V (2429) Czechia 2004}) 6... Ne7 7. h3 $146 ({Predecessor:} 7. f3 Bh5 8. Bg5 f6 9. Be3 Nbc6 10. Qd2 Qd7 11. O-O-O O-O-O 12. Bf4 g5 13. Bxd6 Qxd6 {½-½ (35) Skrabakova,K (1991)-Srna,J (1984) Slovakia 2013}) 7... Bh5 8. f4 Bg6 9. O-O Bxd3 10. Qxd3 c6 11. f5 Nd7 12. Bg5 Nf6 13. Rae1 Qc7 14. Nf4 O-O-O 15. Bxf6 gxf6 16. Nh5 Rhg8 17. Nxf6 Rg3 18. Re3 h6 19. Rxg3 Bxg3 20. Ne2 Bd6 21. Kh1 c5 22. dxc5 Qxc5 23. c3 Bc7 24. Qd4 Qd6 25. g3 Bb6 (25... Qa6 $5 26. Re1 $8 (26. Rf2 $2 Bb6 $19) 26... Nxf5 $15) 26. Qh4 Qe5 27. Nd4 Nc6 28. Rd1 Nxd4 ({Black should try} 28... Rh8 $17 29. Nh5 Nxd4 30. cxd4 Qxf5) 29. cxd4 Qe2 30. Rc1+ Kb8 31. Qf4+ Ka8 32. Nxd5 Qxb2 $14 33. Nc7+ Bxc7 34. Qxc7 Rb8 35. d5 Qxa2 36. Qc5 Qe2 37. d6 Qf3+ 38. Kh2 Qe2+ 39. Kg1 Qf3 40. Qf2 Qd5 41. Ra1 a6 42. Qb6 Rg8 43. Ra3 Qd1+ 44. Kg2 Qd2+ 45. Kf3 Qd1+ 46. Kf4 Qc1+ 1/2-1/2

[Event "ESTCC U50 2018"]
[Site "Walbrzych"]
[Date "2018.04.14"]
[Round "1"]
[White "Lembidakis, Michael"]
[Black "Scowen, Roger S"]
[Result "0-1"]
[ECO "C02"]
[WhiteElo "2069"]
[BlackElo "1882"]
[Annotator "NA"]
[PlyCount "37"]
[EventDate "2018.??.??"]
[EventCountry "POL"]
[SourceTitle "playchess.com"]
[Source "ChessBase"]
[SourceQuality "1"]
[WhiteTeam "FIN"]
[BlackTeam "ENG"]
[WhiteTeamCountry "SCO"]
[BlackTeamCountry "ENG"]
[TimeControl "40/5400+30:1800+30"]

1. e4 {[%emt 0:00:00]} e6 {[%emt 0:00:14]} 2. d4 {[%emt 0:00:00]} d5 {[%emt 0:00:02]} 3. e5 {[%emt 0:00:40]} c5 {[%emt 0:00:13]} 4. Nf3 {[%emt 0:00:55]} Nc6 {[%emt 0:00:11]} 5. Bg5 {[%emt 0:01:27]} Qb6 {[%emt 0:01:14]} 6. b3 {[%emt 0:02:14]} cxd4 {[%emt 0:00:55]} 7. Bd3 {[%emt 0:01:57]} Bb4+ {[%emt 0:04:34]} 8. Bd2 {[%emt 0:00:31]} Nge7 {[%emt 0:05:51]} 9. O-O {[%emt 0:01:31]} Ng6 {[%emt 0:09:05]} 10. Re1 {[%emt 0:01:10]} Bd7 {[%emt 0:10:08]} 11. c3 {[%emt 0:01:29]} dxc3 {[%emt 0:00:31]} 12. Nxc3 {[%emt 0:00:27]} a6 {[%emt 0:07:52]} 13. Na4 {[%emt 0:02:38]} Qa5 {[%emt 0:02:02]} 14. Rc1 {[%emt 0:01:24]} Bxd2 {[%emt 0:02:15]} 15. Nxd2 {[%emt 0:00:41]} Ncxe5 {[%emt 0:02:09]} 16. Rc5 {[%emt 0:05:45]} Qb4 {[%emt 0:03:11]} 17. Bxg6 {[%emt 0:07:55]} Nxg6 {[%emt 0:20:43]} 18. Rxd5 {[%emt 0:00:30]} Bc6 {[%emt 0:00:39]} 19. Rg5 {[%emt 0:11:19]} 0-1

[Event "ESTCC U50 2018"]
[Site "Walbrzych"]
[Date "2018.04.14"]
[Round "1"]
[White "Lopez de Turiso, Jose Angel"]
[Black "Sirotkina, Nina"]
[Result "0-1"]
[ECO "B01"]
[WhiteElo "2064"]
[BlackElo "2175"]
[Annotator "NA"]
[PlyCount "52"]
[EventDate "2018.??.??"]
[EventCountry "POL"]
[SourceTitle "playchess.com"]
[Source "ChessBase"]
[SourceQuality "1"]
[WhiteTeam "Spain"]
[BlackTeam "Russia"]
[WhiteTeamCountry "ESP"]
[BlackTeamCountry "RUS"]
[TimeControl "40/5400+30:1800+30"]

1. e4 {[%emt 0:00:00]} d5 {[%emt 0:01:33]} 2. exd5 {[%emt 0:00:00]} Qxd5 {[%emt 0:00:10]} 3. Nf3 {[%emt 0:00:03]} Nf6 {[%emt 0:04:46]} 4. d4 {[%emt 0:01:39]} Bg4 {[%emt 0:07:17]} 5. Be2 {[%emt 0:01:02]} c6 {[%emt 0:00:52]} 6. O-O {[%emt 0:04:22]} e6 {[%emt 0:02:22]} 7. c4 {[%emt 0:01:15]} Qd6 {[%emt 0:11:28]} 8. Nc3 {[%emt 0:00:55]} Be7 {[%emt 0:01:48]} 9. Be3 {[%emt 0:08:59]} Nbd7 {[%emt 0:16:49]} 10. a3 {[%emt 0:04:13]} O-O {[%emt 0:05:10]} 11. b4 {[%emt 0:07:21]} Qc7 {[%emt 0:04:56]} 12. Qb3 {[%emt 0:02:34]} e5 {[%emt 0:10:05]} 13. d5 {[%emt 0:10:50]} cxd5 {[%emt 0:04:11]} 14. cxd5 {[%emt 0:02:38]} e4 {[%emt 0:01:07]} 15. Nd4 {[%emt 0:03:44]} Qe5 {[%emt 0:01:18]} 16. g3 {[%emt 0:11:10]} Qh5 {[%emt 0:02:58]} 17. f3 {[%emt 0:04:40]} exf3 {[%emt 0:01:22]} 18. Bxf3 {[%emt 0:00:07]} Bxf3 {[%emt 0:01:56]} 19. Nxf3 {[%emt 0:01:00]} Ng4 {[%emt 0:01:41]} 20. Bd4 {[%emt 0:02:01]} Bf6 {[%emt 0:00:55]} 21. Rad1 {[%emt 0:04:09]} Rfe8 {[%emt 0:04:59]} 22. Qa2 {[%emt 0:04:59]} Ne3 {[%emt 0:02:05]} 23. Bxf6 {[%emt 0:06:34]} Nxf6 {[%emt 0:01:27]} 24. Nd4 {[%emt 0:02:26]} Nxd1 {[%emt 0:02:00]} 25. Rxd1 {[%emt 0:00:30]} Re3 {[%emt 0:00:37]} 26. Qd2 {[%emt 0:03:48]} Rxc3 {[%emt 0:02:16]} 0-1

[Event "ESTCC U50 2018"]
[Site "Walbrzych"]
[Date "2018.04.14"]
[Round "1"]
[White "Van Herck, Marcel"]
[Black "Aird, Ian"]
[Result "1/2-1/2"]
[ECO "C64"]
[WhiteElo "2061"]
[BlackElo "1785"]
[Annotator "NA"]
[PlyCount "60"]
[EventDate "2018.??.??"]
[EventCountry "POL"]
[SourceTitle "playchess.com"]
[Source "ChessBase"]
[SourceQuality "1"]
[WhiteTeam "Belgium"]
[BlackTeam "Scotland"]
[WhiteTeamCountry "BEL"]
[BlackTeamCountry "SCO"]
[TimeControl "40/5400+30:1800+30"]

1. e4 e5 2. Nf3 Nc6 3. Bb5 Bc5 4. O-O Nd4 5. Nxd4 Bxd4 6. c3 Bb6 7. d4 c6 8. Ba4 d6 9. Na3 Nf6 10. Qd3 {C64: Ruy Lopez: Classical Defence (3...Bc5) except 4 0-0 Nf6} (10. Bc2 Be6 11. h3 h6 12. Be3 O-O 13. dxe5 dxe5 14. Qf3 Bxe3 15. Qxe3 Qb6 16. Qxb6 axb6 17. Rfe1 Rfd8 18. Bb3 Bxb3 19. axb3 {½-½ (61) Perez Ponsa,F (2585)-Vallejo Pons,F (2711) Doha 2016}) 10... O-O 11. Bg5 h6 12. Bh4 Qe7 13. Rae1 $146 ({Predecessor:} 13. Bc2 g5 14. Bg3 exd4 15. cxd4 Qxe4 {1-0 (15) Kujawski,A (2296)-Tustanowski,R (2211) Jastrzebia Gora 2016}) 13... g5 14. Bg3 Nh5 15. Nc4 Nf4 16. Bxf4 gxf4 17. Kh1 Bc7 18. Bd1 Kh8 19. g3 Qf6 20. gxf4 Qxf4 21. Qg3 Qg5 22. Ne3 f5 $14 23. Qxg5 hxg5 24. exf5 Bxf5 25. dxe5 dxe5 26. Nxf5 Rxf5 27. Bg4 Rf4 28. f3 Raf8 29. Kg2 e4 30. Rxe4 Rxe4 1/2-1/2

[Event "ESTCC U50 2018"]
[Site "Walbrzych"]
[Date "2018.04.14"]
[Round "1"]
[White "Reuben, Stewart"]
[Black "Telenius, Kimmo"]
[Result "1-0"]
[ECO "A10"]
[WhiteElo "2026"]
[BlackElo "1603"]
[Annotator "NA"]
[PlyCount "59"]
[EventDate "2018.??.??"]
[EventCountry "POL"]
[SourceTitle "playchess.com"]
[Source "ChessBase"]
[SourceQuality "1"]
[WhiteTeam "ENG"]
[BlackTeam "FIN"]
[WhiteTeamCountry "ENG"]
[BlackTeamCountry "FIN"]
[TimeControl "40/5400+30:1800+30"]

1. c4 {[%emt 0:00:00]} d6 {[%emt 0:01:19]} 2. Nc3 {[%emt 0:00:00]} Nf6 {[%emt 0:00:22]} 3. g3 {[%emt 0:00:26]} g6 {[%emt 0:00:57]} 4. Bg2 {[%emt 0:00:10]} Bg7 {[%emt 0:00:32]} 5. d4 {[%emt 0:00:27]} c6 {[%emt 0:01:08]} 6. e4 {[%emt 0:00:51]} O-O {[%emt 0:01:23]} 7. Nge2 {[%emt 0:00:11]} a5 {[%emt 0:01:34]} 8. O-O {[%emt 0:00:31]} Na6 {[%emt 0:01:32]} 9. h3 {[%emt 0:02:09]} Qc7 {[%emt 0:04:46]} 10. Be3 {[%emt 0:00:39]} Bd7 {[%emt 0:01:04]} 11. Qd2 {[%emt 0:00:40]} Qc8 {[%emt 0:01:41]} 12. Kh2 {[%emt 0:00:40]} Rd8 {[%emt 0:02:42]} 13. Rac1 {[%emt 0:05:19]} Ne8 {[%emt 0:03:53]} 14. f4 {[%emt 0:05:46]} f5 {[%emt 0:03:13]} 15. e5 {[%emt 0:04:41]} Kh8 {[%emt 0:03:26]} 16. e6 {[%emt 0:29:09]} Bxe6 {[%emt 0:03:46]} 17. Na4 {[%emt 0:00:15]} d5 {[%emt 0:10:02]} 18. Nb6 {[%emt 0:03:40]} Qc7 {[%emt 0:00:46]} 19. Nxa8 {[%emt 0:00:14]} Rxa8 {[%emt 0:00:09]} 20. cxd5 {[%emt 0:00:35]} Bd7 {[%emt 0:02:34]} 21. dxc6 {[%emt 0:00:54]} bxc6 {[%emt 0:01:47]} 22. d5 {[%emt 0:03:59]} Rb8 {[%emt 0:02:59]} 23. dxc6 {[%emt 0:00:58]} Be6 {[%emt 0:02:42]} 24. b3 {[%emt 0:17:00]} Nd6 {[%emt 0:07:34]} 25. Bd4 {[%emt 0:04:28]} Nb5 {[%emt 0:01:54]} 26. Bxg7+ {[%emt 0:00:40]} Kxg7 {[%emt 0:00:10]} 27. Nd4 {[%emt 0:00:49]} Bc8 {[%emt 0:05:08]} 28. Nxb5 {[%emt 0:04:32]} Rxb5 {[%emt 0:00:29]} 29. Rfe1 {[%emt 0:03:36]} Nb8 {[%emt 0:06:43]} 30. Qe2 {[%emt 0:01:10]} 1-0

[Event "ESTCC U50 2018"]
[Site "Walbrzych"]
[Date "2018.04.14"]
[Round "1"]
[White "Roth, Martin"]
[Black "Kierzek, Mira"]
[Result "0-1"]
[ECO "B32"]
[WhiteElo "2008"]
[BlackElo "2011"]
[Annotator "NA RC"]
[PlyCount "58"]
[EventDate "2018.??.??"]
[EventCountry "POL"]
[SourceTitle "playchess.com"]
[Source "ChessBase"]
[SourceQuality "1"]
[WhiteTeam "SUI"]
[BlackTeam "GER"]
[WhiteTeamCountry "GER"]
[BlackTeamCountry "GER"]
[TimeControl "40/5400+30:1800+30"]

1. e4 c5 2. Nf3 Nc6 3. d4 cxd4 4. c3 dxc3 5. Nxc3 a6 6. Bc4 e6 7. O-O Qc7 8. Qe2 Bd6 9. Rd1 {B21: Sicilian: 2 f4 and Morra Gambit} (9. Re1 b5 10. Bb3 Nge7 11. e5 Bb4 12. Bd2 d5 13. exd6 Bxd6 14. Ne4 Bb7 15. Nfg5 Nd8 16. Rac1 Qb8 17. Nxd6+ Qxd6 {1-0 (42) Ohtake,S (2546)-Solari,A (2493) ICCF email 2007}) 9... Ne5 10. Nxe5 Bxe5 11. g3 b5 12. Bb3 Ne7 13. Be3 O-O $146 ({Predecessor:} 13... Bb7 14. Rac1 Qa5 15. f4 Bxc3 16. Rxc3 Bc6 {½-½ (24) Inksetter,M (1555)-Laszlo,R (1773) Ottawa 2005}) 14. Rac1 Nc6 15. Nd5 exd5 16. exd5 Bb7 17. dxc6 dxc6 18. Bc5 Rfe8 19. Re1 h6 20. Rcd1 g6 21. Qg4 Bg7 $18 22. Qxg6 Re6 23. Bxe6 fxe6 24. Qxe6+ Kh8 25. Rd7 Qc8 26. Qe7 Qg8 27. Rxb7 Bxb2 28. Qh4 Bg7 29. Bd4 Qd8 0-1

[Event "ESTCC U50 2018"]
[Site "Walbrzych"]
[Date "2018.04.14"]
[Round "1"]
[White "Sihvonen, Tero"]
[Black "Daleczko, Zbigniew"]
[Result "0-1"]
[ECO "B20"]
[WhiteElo "1988"]
[BlackElo "1835"]
[Annotator "NA"]
[PlyCount "164"]
[EventDate "2018.??.??"]
[EventCountry "POL"]
[SourceTitle "playchess.com"]
[Source "ChessBase"]
[SourceQuality "1"]
[WhiteTeam "Finland"]
[BlackTeam "Poland"]
[WhiteTeamCountry "FIN"]
[BlackTeamCountry "POL"]
[TimeControl "40/5400+30:1800+30"]

1. e4 {[%emt 0:00:26]} c5 {[%emt 0:04:06]} 2. g3 {[%emt 0:00:56]} Nc6 {[%emt 0:00:19]} 3. Bg2 {[%emt 0:00:26]} g6 {[%emt 0:00:24]} 4. Ne2 {[%emt 0:03:19]} Bg7 {[%emt 0:00:25]} 5. O-O {[%emt 0:01:18]} d6 {[%emt 0:01:31]} 6. h3 {[%emt 0:00:24]} Nf6 {[%emt 0:03:43]} 7. d3 {[%emt 0:10:05]} Rb8 {[%emt 0:00:27]} 8. a4 {[%emt 0:02:26]} O-O {[%emt 0:02:13]} 9. Be3 {[%emt 0:06:02]} Bd7 {[%emt 0:06:40]} 10. Nbc3 {[%emt 0:04:20]} a6 {[%emt 0:07:43]} 11. Qd2 {[%emt 0:11:38]} e5 {[%emt 0:04:53]} 12. Bg5 {[%emt 0:02:09]} Qc8 {[%emt 0:00:16]} 13. Kh2 {[%emt 0:00:28]} Ne8 {[%emt 0:03:00]} 14. Nd5 {[%emt 0:08:45]} f6 $14 {[%emt 0:00:37]} 15. Bh6 {[%emt 0:02:06]} Qd8 {[%emt 0:04:56]} 16. a5 {[%emt 0:13:00]} Ne7 {[%emt 0:01:09]} 17. Nec3 {[%emt 0:02:49]} Nc7 {[%emt 0:01:55]} 18. Bxg7 {[%emt 0:03:08]} Kxg7 {[%emt 0:00:38]} 19. f4 {[%emt 0:00:13]} Ncxd5 {[%emt 0:03:35]} 20. exd5 {[%emt 0:00:23]} Qc7 {[%emt 0:02:38]} 21. Rf2 {[%emt 0:01:37]} Rbe8 {[%emt 0:16:53]} 22. Ne2 {[%emt 0:00:36]} b5 {[%emt 0:01:48]} 23. axb6 {[%emt 0:02:17]} Qxb6 {[%emt 0:00:05]} 24. Rff1 {[%emt 0:03:29]} Rb8 {[%emt 0:03:37]} 25. b3 {[%emt 0:00:26]} Qd8 {[%emt 0:03:54]} 26. Rxa6 {[%emt 0:00:47]} Bc8 {[%emt 0:00:16]} 27. Ra7 {[%emt 0:00:58]} Rf7 {[%emt 0:02:10]} 28. Qa5 {[%emt 0:02:24]} Qxa5 {[%emt 0:02:44]} 29. Rxa5 {[%emt 0:00:28]} Nf5 {[%emt 0:01:23]} 30. Rfa1 {[%emt 0:02:53]} Ne3 {[%emt 0:00:34]} 31. R1a2 {[%emt 0:00:52]} Rb4 {[%emt 0:05:50]} 32. R5a4 {[%emt 0:04:17]} Rfb7 {[%emt 0:02:09]} 33. Rxb4 {[%emt 0:01:59]} Rxb4 {[%emt 0:01:35]} 34. Bf3 {[%emt 0:03:06]} Bb7 {[%emt 0:00:47]} 35. fxe5 {[%emt 0:00:46]} fxe5 {[%emt 0:00:52]} 36. Nc3 {[%emt 0:00:58]} Kf6 {[%emt 0:06:12]} 37. Kg1 {[%emt 0:01:31]} Ke7 {[%emt 0:01:53]} 38. Kf2 {[%emt 0:01:36]} Nf5 {[%emt 0:00:14]} 39. Ra7 {[%emt 0:01:25]} Nd4 {[%emt 0:00:44]} 40. Bd1 {[%emt 0:00:00]} Kd8 {[%emt 0:01:22]} 41. Ne4 {[%emt 0:07:39]} Rb6 {[%emt 0:00:36]} 42. Nc3 {[%emt 0:04:57]} Nb5 {[%emt 0:03:18]} 43. Nxb5 {[%emt 0:00:25]} Rxb5 {[%emt 0:00:06]} 44. c4 {[%emt 0:00:35]} Rb6 {[%emt 0:01:27]} 45. Kf3 {[%emt 0:00:39]} Kc7 {[%emt 0:01:26]} 46. Kg4 {[%emt 0:02:04]} Kb8 {[%emt 0:00:36]} 47. Ra2 {[%emt 0:00:18]} Bc8+ {[%emt 0:00:39]} 48. Kh4 {[%emt 0:00:51]} Rb7 {[%emt 0:05:23]} 49. Rf2 {[%emt 0:00:51]} Bf5 {[%emt 0:02:08]} 50. Bc2 {[%emt 0:01:50]} Re7 {[%emt 0:00:24]} 51. g4 {[%emt 0:00:53]} Bd7 {[%emt 0:01:14]} 52. Kg5 {[%emt 0:00:13]} h5 {[%emt 0:00:43]} 53. Rf6 {[%emt 0:00:39]} hxg4 {[%emt 0:00:30]} 54. hxg4 {[%emt 0:00:20]} Kc7 {[%emt 0:01:33]} 55. Rxg6 {[%emt 0:01:06]} Be8 {[%emt 0:00:18]} 56. Kf6 {[%emt 0:03:52]} Rf7+ {[%emt 0:00:23]} 57. Ke6 {[%emt 0:00:18]} Rh7 {[%emt 0:01:09]} 58. Rg5 {[%emt 0:01:58]} Bd7+ {[%emt 0:01:04]} 59. Kf6 {[%emt 0:00:05]} Rh2 {[%emt 0:00:34]} 60. d4 {[%emt 0:03:57]} Rxc2 {[%emt 0:00:55]} 61. dxe5 {[%emt 0:01:57]} Rf2+ {[%emt 0:00:26]} 62. Ke7 {[%emt 0:00:19]} dxe5 {[%emt 0:00:22]} 63. Rxe5 {[%emt 0:00:42]} Bxg4 {[%emt 0:00:23]} 64. d6+ {[%emt 0:00:50]} Kc6 {[%emt 0:00:28]} 65. Rd5 {[%emt 0:04:41]} Re2+ {[%emt 0:01:19]} 66. Kf6 {[%emt 0:00:26]} Bd7 {[%emt 0:00:33]} 67. Rd3 {[%emt 0:01:24]} Re6+ {[%emt 0:00:29]} 68. Kf7 {[%emt 0:00:04]} Rxd6 {[%emt 0:00:23]} 69. Rg3 {[%emt 0:00:22]} Bf5 {[%emt 0:01:49]} 70. Rg2 {[%emt 0:00:29]} Rd7+ {[%emt 0:01:13]} 71. Kf6 {[%emt 0:00:03]} Be4 {[%emt 0:00:45]} 72. Rb2 {[%emt 0:00:14]} Rb7 {[%emt 0:00:39]} 73. Ke5 {[%emt 0:00:08]} Bd3 {[%emt 0:00:35]} 74. Rf2 {[%emt 0:01:03]} Re7+ {[%emt 0:00:54]} 75. Kf6 {[%emt 0:00:05]} Rb7 {[%emt 0:00:33]} 76. Ke5 {[%emt 0:00:08]} Re7+ {[%emt 0:02:12]} 77. Kf6 {[%emt 0:00:04]} Re1 {[%emt 0:00:27]} 78. Rh2 {[%emt 0:01:34]} Kd6 {[%emt 0:01:31]} 79. Rd2 {[%emt 0:00:46]} Re3 {[%emt 0:01:16]} 80. Rb2 {[%emt 0:00:16]} Re2 {[%emt 0:01:28]} 81. Rd2 Re3 82. Rb2 Re2 0-1

[Event "ESTCC U50 2018"]
[Site "Walbrzych"]
[Date "2018.04.14"]
[Round "1"]
[White "Ciuro Munoz, Ricardo"]
[Black "Fatalibekova, Elena"]
[Result "1/2-1/2"]
[ECO "B50"]
[WhiteElo "1972"]
[BlackElo "2195"]
[Annotator "NA"]
[PlyCount "35"]
[EventDate "2018.??.??"]
[EventCountry "POL"]
[SourceTitle "playchess.com"]
[Source "ChessBase"]
[SourceQuality "1"]
[WhiteTeam "Spain"]
[BlackTeam "Russia"]
[WhiteTeamCountry "ESP"]
[BlackTeamCountry "RUS"]
[TimeControl "40/5400+30:1800+30"]

1. e4 {[%emt 0:00:00]} c5 {[%emt 0:00:05]} 2. Nf3 {[%emt 0:00:00]} d6 {[%emt 0:00:06]} 3. d3 {[%emt 0:00:06]} Nc6 {[%emt 0:01:14]} 4. g3 {[%emt 0:00:07]} g6 {[%emt 0:00:54]} 5. Bg2 {[%emt 0:00:07]} Bg7 {[%emt 0:00:30]} 6. O-O {[%emt 0:00:06]} Nf6 {[%emt 0:02:44]} 7. c3 {[%emt 0:05:39]} O-O {[%emt 0:02:09]} 8. Nbd2 {[%emt 0:01:21]} Bd7 {[%emt 0:06:21]} 9. a3 {[%emt 0:03:05]} b5 {[%emt 0:06:55]} 10. b4 {[%emt 0:01:31]} cxb4 {[%emt 0:06:43]} 11. axb4 {[%emt 0:00:25]} a5 {[%emt 0:00:18]} 12. bxa5 {[%emt 0:00:14]} Rxa5 {[%emt 0:00:25]} 13. Bb2 {[%emt 0:00:13]} d5 {[%emt 0:08:50]} 14. exd5 $11 {[%emt 0:12:17]} (14. Rxa5 $14 Qxa5 15. e5) 14... Nxd5 {[%emt 0:01:45]} 15. Qb3 {[%emt 0:00:13]} Nb6 {[%emt 0:03:07]} 16. c4 {[%emt 0:10:08]} Bxb2 {[%emt 0:26:50]} 17. Qxb2 {[%emt 0:02:13]} bxc4 {[%emt 0:04:18]} 18. Nxc4 1/2-1/2

[Event "ESTCC U50 2018"]
[Site "Walbrzych"]
[Date "2018.04.14"]
[Round "1"]
[White "Szmyd, Marek"]
[Black "Salonen, Jyrki"]
[Result "1/2-1/2"]
[ECO "A01"]
[WhiteElo "1898"]
[BlackElo "2159"]
[Annotator "NA"]
[PlyCount "88"]
[EventDate "2018.??.??"]
[EventCountry "POL"]
[SourceTitle "playchess.com"]
[Source "ChessBase"]
[SourceQuality "1"]
[WhiteTeam "Poland"]
[BlackTeam "Finland"]
[WhiteTeamCountry "POL"]
[BlackTeamCountry "FIN"]
[TimeControl "40/5400+30:1800+30"]

1. b3 {[%emt 0:05:23]} e5 {[%emt 0:01:09]} 2. Bb2 {[%emt 0:00:04]} Nc6 {[%emt 0:01:58]} 3. e3 {[%emt 0:02:05]} d6 {[%emt 0:02:08]} 4. Nf3 {[%emt 0:00:48]} e4 {[%emt 0:11:07]} 5. Nd4 {[%emt 0:01:40]} Nxd4 {[%emt 0:07:12]} 6. Bxd4 {[%emt 0:00:13]} Nf6 {[%emt 0:01:01]} 7. Be2 {[%emt 0:00:11]} Be7 {[%emt 0:03:16]} 8. O-O {[%emt 0:00:18]} O-O {[%emt 0:00:21]} 9. d3 {[%emt 0:05:44]} exd3 {[%emt 0:08:26]} 10. Qxd3 {[%emt 0:07:16]} Nd7 {[%emt 0:06:40]} 11. c4 {[%emt 0:03:45]} Bf6 {[%emt 0:05:22]} 12. Bxf6 {[%emt 0:04:34]} Qxf6 {[%emt 0:01:20]} 13. Nc3 {[%emt 0:01:30]} Nc5 {[%emt 0:03:04]} 14. Qd4 {[%emt 0:11:19]} Qe5 {[%emt 0:09:24]} 15. Qxe5 {[%emt 0:14:17]} dxe5 {[%emt 0:00:09]} 16. Nd5 {[%emt 0:04:21]} c6 {[%emt 0:02:12]} 17. Ne7+ {[%emt 0:00:12]} Kh8 {[%emt 0:00:07]} 18. Nxc8 {[%emt 0:00:38]} Raxc8 {[%emt 0:00:19]} 19. Rfd1 {[%emt 0:03:37]} Rcd8 {[%emt 0:01:12]} 20. f3 {[%emt 0:04:10]} a5 {[%emt 0:01:43]} 21. Rxd8 {[%emt 0:12:25]} Rxd8 {[%emt 0:00:14]} 22. Rd1 {[%emt 0:00:30]} Rxd1+ {[%emt 0:00:48]} 23. Bxd1 {[%emt 0:00:02]} g6 {[%emt 0:01:17]} 24. Bc2 {[%emt 0:03:00]} Kg7 {[%emt 0:00:41]} 25. Kf2 {[%emt 0:02:52]} Kf6 {[%emt 0:00:30]} 26. a3 {[%emt 0:02:25]} Ke6 {[%emt 0:04:06]} 27. Ke2 {[%emt 0:01:12]} Kd6 {[%emt 0:01:32]} 28. Kd2 {[%emt 0:01:19]} Na6 {[%emt 0:02:26]} 29. Kc3 {[%emt 0:00:54]} Kc5 {[%emt 0:00:29]} 30. f4 {[%emt 0:01:51]} exf4 {[%emt 0:01:38]} 31. exf4 {[%emt 0:00:02]} b5 {[%emt 0:03:23]} 32. cxb5 {[%emt 0:00:25]} cxb5 {[%emt 0:00:14]} 33. h4 {[%emt 0:04:20]} b4+ {[%emt 0:03:09]} 34. axb4+ {[%emt 0:00:06]} axb4+ {[%emt 0:01:37]} 35. Kd3 {[%emt 0:00:12]} Kd5 {[%emt 0:00:17]} 36. g4 {[%emt 0:01:15]} Nc5+ {[%emt 0:02:26]} 37. Ke3 {[%emt 0:00:10]} h6 {[%emt 0:01:41]} 38. Bd1 {[%emt 0:01:15]} f6 {[%emt 0:01:14]} 39. g5 {[%emt 0:00:28]} hxg5 {[%emt 0:02:29]} 40. fxg5 {[%emt 0:00:00]} fxg5 {[%emt 0:08:00]} 41. hxg5 {[%emt 0:00:45]} Ke5 {[%emt 0:14:52]} 42. Bc2 {[%emt 0:01:34]} Nxb3 {[%emt 0:06:18]} 43. Bxb3 {[%emt 0:00:23]} Kf5 {[%emt 0:00:09]} 44. Bc2+ {[%emt 0:00:16]} Kxg5 1/2-1/2

[Event "ESTCC U50 2018"]
[Site "Walbrzych"]
[Date "2018.04.14"]
[Round "1"]
[White "Giulian, Rosemary A"]
[Black "Deleyn, Gunter"]
[Result "1-0"]
[ECO "B06"]
[WhiteElo "1880"]
[BlackElo "2200"]
[Annotator "NA"]
[PlyCount "62"]
[EventDate "2018.??.??"]
[EventCountry "POL"]
[SourceTitle "playchess.com"]
[Source "ChessBase"]
[SourceQuality "1"]
[WhiteTeam "Scotland"]
[BlackTeam "Belgium"]
[WhiteTeamCountry "SCO"]
[BlackTeamCountry "BEL"]
[TimeControl "40/5400+30:1800+30"]

1. e4 g6 2. d4 {[%emt 0:00:25]} Bg7 {[%emt 0:00:35]} 3. Nc3 {[%emt 0:00:26]} d6 {[%emt 0:00:06]} 4. Be3 {[%emt 0:00:19]} a6 {[%emt 0:00:16]} 5. Qd2 {[%emt 0:00:16]} b5 {[%emt 0:00:26]} 6. f3 {[%emt 0:00:18]} c6 {[%emt 0:00:55]} 7. O-O-O {[%emt 0:04:05] B06: Modern Defence} (7. a4 b4 8. Nd1 a5 9. Bd3 Nd7 10. Ne2 Ngf6 11. Bh6 Bxh6 12. Qxh6 e5 13. c3 bxc3 14. bxc3 Ng8 {½-½ (53) Efimenko,Z (2701)-Nijboer,F (2584) Wijk aan Zee 2011}) 7... Qc7 {[%emt 0:00:51]} 8. h4 {[%emt 0:01:22]} h5 {[%emt 0:00:16]} 9. g3 $146 {[%emt 0:03:06]} ({Predecessor:} 9. Nh3 Bxh3 10. Rxh3 Nd7 11. g4 hxg4 12. fxg4 b4 13. Na4 Qa5 {1-0 (46) Luther,T (2470)-Hargens,T (2255) Germany 1991}) 9... Nd7 {[%emt 0:02:31]} 10. Bh3 {[%emt 0:02:47]} Ngf6 {[%emt 0:04:17]} 11. Kb1 {[%emt 0:01:39]} Nb6 {[%emt 0:01:28]} 12. b3 {[%emt 0:01:07]} b4 {[%emt 0:05:59]} 13. Nce2 {[%emt 0:00:46]} a5 {[%emt 0:00:51]} 14. Bxc8 {[%emt 0:01:22]} Rxc8 {[%emt 0:00:10]} 15. Nh3 {[%emt 0:00:50]} c5 {[%emt 0:07:00]} 16. dxc5 {[%emt 0:10:04]} dxc5 {[%emt 0:00:06]} 17. Nef4 {[%emt 0:02:39]} O-O {[%emt 0:04:30]} 18. Qe2 {[%emt 0:05:50]} Nxe4 {[%emt 0:07:43]} 19. fxe4 {[%emt 0:07:53]} Qe5 {[%emt 0:00:28]} 20. Bd4 {[%emt 0:00:22]} cxd4 {[%emt 0:00:21]} 21. Rd3 {[%emt 0:02:07]} Rc6 {[%emt 0:04:46]} 22. Ng5 {[%emt 0:01:53]} Rfc8 {[%emt 0:02:57]} 23. Nf3 {[%emt 0:06:44]} Qc7 {[%emt 0:00:46]} 24. Rc1 {[%emt 0:00:30]} e5 {[%emt 0:00:40]} 25. Nd5 {[%emt 0:06:59]} Nxd5 {[%emt 0:00:11]} 26. exd5 {[%emt 0:00:07]} Rc5 {[%emt 0:00:09]} 27. Ng5 {[%emt 0:03:31]} Rxd5 {[%emt 0:04:02]} 28. g4 {[%emt 0:04:59]} hxg4 {[%emt 0:02:01]} 29. Qxg4 {[%emt 0:02:59]} f5 $19 {[%emt 0:02:59]} 30. Qg2 {[%emt 0:00:36]} Rd6 {[%emt 0:00:47]} 31. Rf1 {[%emt 0:03:46]} e4 {[%emt 0:00:34]} 1-0